Workbook

Sheet Termékértékesítési jelentés
B1: Termékértékesítési jelentés
B20: Termékek

Sheet Előzmények
B1: Korábbi termékárlista és értékesítések
B3: Termékazonosító | C3: Terméknév | D3: Ár dátuma | E3: Egységenkénti kiskereskedelmi ár | F3: Egységenkénti nagykereskedelmi ár* | G3: Eladott mennyiség (kiskereskedelem) | H3: Eladott mennyiség (nagykereskedelem) | I3: Összes értékesítés (#) | J3: Összes értékesítés (Ft)
B4: 5 | C4: =IFERROR(IF(táblázatÉrtékesítés[[#This Row],[Termékazonosító]]<>"",VLOOKUP(táblázatÉrtékesítés[Termékazonosító],táblázatTermékek[[Termékazonosító]:[Név]],2,FALSE),""),"Ismeretlen termékazonosító") -> Rövidnadrág | D4: 2012-01-01 | E4: 20 | F4: 20 Ft | G4: 629 | H4: 1,254 | I4: =táblázatÉrtékesítés[[#This Row],[Eladott mennyiség (kiskereskedelem)]]+táblázatÉrtékesítés[[#This Row],[Eladott mennyiség (nagykereskedelem)]] -> 1,883 | J4: =táblázatÉrtékesítés[[#This Row],[Eladott mennyiség (kiskereskedelem)]]*táblázatÉrtékesítés[[#This Row],[Egységenkénti kiskereskedelmi ár]]+táblázatÉrtékesítés[[#This Row],[Eladott mennyiség (nagykereskedelem)]]*táblázatÉrtékesítés[[#This Row],[Egységenkénti nagykereskedelmi ár*]] -> 37,660 Ft
B5: 1 | C5: =IFERROR(IF(táblázatÉrtékesítés[[#This Row],[Termékazonosító]]<>"",VLOOKUP(táblázatÉrtékesítés[Termékazonosító],táblázatTermékek[[Termékazonosító]:[Név]],2,FALSE),""),"Ismeretlen termékazonosító") -> Ing | D5: 2012-01-01 | E5: 88 | F5: 54 Ft | G5: 734 | H5: 1,427 | I5: =táblázatÉrtékesítés[[#This Row],[Eladott mennyiség (kiskereskedelem)]]+táblázatÉrtékesítés[[#This Row],[Eladott mennyiség (nagykereskedelem)]] -> 2,161 | J5: =táblázatÉrtékesítés[[#This Row],[Eladott mennyiség (kiskereskedelem)]]*táblázatÉrtékesítés[[#This Row],[Egységenkénti kiskereskedelmi ár]]+táblázatÉrtékesítés[[#This Row],[Eladott mennyiség (nagykereskedelem)]]*táblázatÉrtékesítés[[#This Row],[Egységenkénti nagykereskedelmi ár*]] -> 141,650 Ft
B6: 2 | C6: =IFERROR(IF(táblázatÉrtékesítés[[#This Row],[Termékazonosító]]<>"",VLOOKUP(táblázatÉrtékesítés[Termékazonosító],táblázatTermékek[[Termékazonosító]:[Név]],2,FALSE),""),"Ismeretlen termékazonosító") -> Szandál | D6: 2012-01-01 | E6: 70 | F6: 44 Ft | G6: 744 | H6: 1,043 | I6: =táblázatÉrtékesítés[[#This Row],[Eladott mennyiség (kiskereskedelem)]]+táblázatÉrtékesítés[[#This Row],[Eladott mennyiség (nagykereskedelem)]] -> 1,787 | J6: =táblázatÉrtékesítés[[#This Row],[Eladott mennyiség (kiskereskedelem)]]*táblázatÉrtékesítés[[#This Row],[Egységenkénti kiskereskedelmi ár]]+táblázatÉrtékesítés[[#This Row],[Eladott mennyiség (nagykereskedelem)]]*táblázatÉrtékesítés[[#This Row],[Egységenkénti nagykereskedelmi ár*]] -> 97,972 Ft
B7: 3 | C7: =IFERROR(IF(táblázatÉrtékesítés[[#This Row],[Termékazonosító]]<>"",VLOOKUP(táblázatÉrtékesítés[Termékazonosító],táblázatTermékek[[Termékazonosító]:[Név]],2,FALSE),""),"Ismeretlen termékazonosító") -> Esernyő | D7: 2012-01-01 | E7: 63 | F7: 44 Ft | G7: 681 | H7: 1,523 | I7: =táblázatÉrtékesítés[[#This Row],[Eladott mennyiség (kiskereskedelem)]]+táblázatÉrtékesítés[[#This Row],[Eladott mennyiség (nagykereskedelem)]] -> 2,204 | J7: =táblázatÉrtékesítés[[#This Row],[Eladott mennyiség (kiskereskedelem)]]*táblázatÉrtékesítés[[#This Row],[Egységenkénti kiskereskedelmi ár]]+táblázatÉrtékesítés[[#This Row],[Eladott mennyiség (nagykereskedelem)]]*táblázatÉrtékesítés[[#This Row],[Egységenkénti nagykereskedelmi ár*]] -> 109,915 Ft
B8: 4 | C8: =IFERROR(IF(táblázatÉrtékesítés[[#This Row],[Termékazonosító]]<>"",VLOOKUP(táblázatÉrtékesítés[Termékazonosító],táblázatTermékek[[Termékazonosító]:[Név]],2,FALSE),""),"Ismeretlen termékazonosító") -> Vizes palackok | D8: 2012-01-01 | E8: 35 | F8: 27 Ft | G8: 602 | H8: 1,822 | I8: =táblázatÉrtékesítés[[#This Row],[Eladott mennyiség (kiskereskedelem)]]+táblázatÉrtékesítés[[#This Row],[Eladott mennyiség (nagykereskedelem)]] -> 2,424 | J8: =táblázatÉrtékesítés[[#This Row],[Eladott mennyiség (kiskereskedelem)]]*táblázatÉrtékesítés[[#This Row],[Egységenkénti kiskereskedelmi ár]]+táblázatÉrtékesítés[[#This Row],[Eladott mennyiség (nagykereskedelem)]]*táblázatÉrtékesítés[[#This Row],[Egységenkénti nagykereskedelmi ár*]] -> 70,264 Ft
B9: 1 | C9: =IFERROR(IF(táblázatÉrtékesítés[[#This Row],[Termékazonosító]]<>"",VLOOKUP(táblázatÉrtékesítés[Termékazonosító],táblázatTermékek[[Termékazonosító]:[Név]],2,FALSE),""),"Ismeretlen termékazonosító") -> Ing | D9: 2012-02-01 | E9: 55 | F9: 44 Ft | G9: 678 | H9: 1,515 | I9: =táblázatÉrtékesítés[[#This Row],[Eladott mennyiség (kiskereskedelem)]]+táblázatÉrtékesítés[[#This Row],[Eladott mennyiség (nagykereskedelem)]] -> 2,193 | J9: =táblázatÉrtékesítés[[#This Row],[Eladott mennyiség (kiskereskedelem)]]*táblázatÉrtékesítés[[#This Row],[Egységenkénti kiskereskedelmi ár]]+táblázatÉrtékesítés[[#This Row],[Eladott mennyiség (nagykereskedelem)]]*táblázatÉrtékesítés[[#This Row],[Egységenkénti nagykereskedelmi ár*]] -> 103,950 Ft
B10: 2 | C10: =IFERROR(IF(táblázatÉrtékesítés[[#This Row],[Termékazonosító]]<>"",VLOOKUP(táblázatÉrtékesítés[Termékazonosító],táblázatTermékek[[Termékazonosító]:[Név]],2,FALSE),""),"Ismeretlen termékazonosító") -> Szandál | D10: 2012-02-01 | E10: 83 | F10: 54 Ft | G10: 753 | H10: 1,005 | I10: =táblázatÉrtékesítés[[#This Row],[Eladott mennyiség (kiskereskedelem)]]+táblázatÉrtékesítés[[#This Row],[Eladott mennyiség (nagykereskedelem)]] -> 1,758 | J10: =táblázatÉrtékesítés[[#This Row],[Eladott mennyiség (kiskereskedelem)]]*táblázatÉrtékesítés[[#This Row],[Egységenkénti kiskereskedelmi ár]]+táblázatÉrtékesítés[[#This Row],[Eladott mennyiség (nagykereskedelem)]]*táblázatÉrtékesítés[[#This Row],[Egységenkénti nagykereskedelmi ár*]] -> 116,769 Ft
B11: 3 | C11: =IFERROR(IF(táblázatÉrtékesítés[[#This Row],[Termékazonosító]]<>"",VLOOKUP(táblázatÉrtékesítés[Termékazonosító],táblázatTermékek[[Termékazonosító]:[Név]],2,FALSE),""),"Ismeretlen termékazonosító") -> Esernyő | D11: 2012-02-01 | E11: 34 | F11: 34 Ft | G11: 986 | H11: 1,069 | I11: =táblázatÉrtékesítés[[#This Row],[Eladott mennyiség (kiskereskedelem)]]+táblázatÉrtékesítés[[#This Row],[Eladott mennyiség (nagykereskedelem)]] -> 2,055 | J11: =táblázatÉrtékesítés[[#This Row],[Eladott mennyiség (kiskereskedelem)]]*táblázatÉrtékesítés[[#This Row],[Egységenkénti kiskereskedelmi ár]]+táblázatÉrtékesítés[[#This Row],[Eladott mennyiség (nagykereskedelem)]]*táblázatÉrtékesítés[[#This Row],[Egységenkénti nagykereskedelmi ár*]] -> 69,870 Ft
B12: 4 | C12: =IFERROR(IF(táblázatÉrtékesítés[[#This Row],[Termékazonosító]]<>"",VLOOKUP(táblázatÉrtékesítés[Termékazonosító],táblázatTermékek[[Termékazonosító]:[Név]],2,FALSE),""),"Ismeretlen termékazonosító") -> Vizes palackok | D12: 2012-02-01 | E12: 35 | F12: 25 Ft | G12: 848 | H12: 1,211 | I12: =táblázatÉrtékesítés[[#This Row],[Eladott mennyiség (kiskereskedelem)]]+táblázatÉrtékesítés[[#This Row],[Eladott mennyiség (nagykereskedelem)]] -> 2,059 | J12: =táblázatÉrtékesítés[[#This Row],[Eladott mennyiség (kiskereskedelem)]]*táblázatÉrtékesítés[[#This Row],[Egységenkénti kiskereskedelmi ár]]+táblázatÉrtékesítés[[#This Row],[Eladott mennyiség (nagykereskedelem)]]*táblázatÉrtékesítés[[#This Row],[Egységenkénti nagykereskedelmi ár*]] -> 59,955 Ft
B13: 5 | C13: =IFERROR(IF(táblázatÉrtékesítés[[#This Row],[Termékazonosító]]<>"",VLOOKUP(táblázatÉrtékesítés[Termékazonosító],táblázatTermékek[[Termékazonosító]:[Név]],2,FALSE),""),"Ismeretlen termékazonosító") -> Rövidnadrág | D13: 2012-02-01 | E13: 41 | F13: 38 Ft | G13: 980 | H13: 1,330 | I13: =táblázatÉrtékesítés[[#This Row],[Eladott mennyiség (kiskereskedelem)]]+táblázatÉrtékesítés[[#This Row],[Eladott mennyiség (nagykereskedelem)]] -> 2,310 | J13: =táblázatÉrtékesítés[[#This Row],[Eladott mennyiség (kiskereskedelem)]]*táblázatÉrtékesítés[[#This Row],[Egységenkénti kiskereskedelmi ár]]+táblázatÉrtékesítés[[#This Row],[Eladott mennyiség (nagykereskedelem)]]*táblázatÉrtékesítés[[#This Row],[Egységenkénti nagykereskedelmi ár*]] -> 90,720 Ft
B14: 1 | C14: =IFERROR(IF(táblázatÉrtékesítés[[#This Row],[Termékazonosító]]<>"",VLOOKUP(táblázatÉrtékesítés[Termékazonosító],táblázatTermékek[[Termékazonosító]:[Név]],2,FALSE),""),"Ismeretlen termékazonosító") -> Ing | D14: 2012-02-29 | E14: 27 | F14: 18 Ft | G14: 533 | H14: 1,936 | I14: =táblázatÉrtékesítés[[#This Row],[Eladott mennyiség (kiskereskedelem)]]+táblázatÉrtékesítés[[#This Row],[Eladott mennyiség (nagykereskedelem)]] -> 2,469 | J14: =táblázatÉrtékesítés[[#This Row],[Eladott mennyiség (kiskereskedelem)]]*táblázatÉrtékesítés[[#This Row],[Egységenkénti kiskereskedelmi ár]]+táblázatÉrtékesítés[[#This Row],[Eladott mennyiség (nagykereskedelem)]]*táblázatÉrtékesítés[[#This Row],[Egységenkénti nagykereskedelmi ár*]] -> 49,239 Ft
B15: 2 | C15: =IFERROR(IF(táblázatÉrtékesítés[[#This Row],[Termékazonosító]]<>"",VLOOKUP(táblázatÉrtékesítés[Termékazonosító],táblázatTermékek[[Termékazonosító]:[Név]],2,FALSE),""),"Ismeretlen termékazonosító") -> Szandál | D15: 2012-02-29 | E15: 38 | F15: 28 Ft | G15: 952 | H15: 1,512 | I15: =táblázatÉrtékesítés[[#This Row],[Eladott mennyiség (kiskereskedelem)]]+táblázatÉrtékesítés[[#This Row],[Eladott mennyiség (nagykereskedelem)]] -> 2,464 | J15: =táblázatÉrtékesítés[[#This Row],[Eladott mennyiség (kiskereskedelem)]]*táblázatÉrtékesítés[[#This Row],[Egységenkénti kiskereskedelmi ár]]+táblázatÉrtékesítés[[#This Row],[Eladott mennyiség (nagykereskedelem)]]*táblázatÉrtékesítés[[#This Row],[Egységenkénti nagykereskedelmi ár*]] -> 78,512 Ft
B16: 3 | C16: =IFERROR(IF(táblázatÉrtékesítés[[#This Row],[Termékazonosító]]<>"",VLOOKUP(táblázatÉrtékesítés[Termékazonosító],táblázatTermékek[[Termékazonosító]:[Név]],2,FALSE),""),"Ismeretlen termékazonosító") -> Esernyő | D16: 2012-02-29 | E16: 92 | F16: 92 Ft | G16: 956 | H16: 1,266 | I16: =táblázatÉrtékesítés[[#This Row],[Eladott mennyiség (kiskereskedelem)]]+táblázatÉrtékesítés[[#This Row],[Eladott mennyiség (nagykereskedelem)]] -> 2,222 | J16: =táblázatÉrtékesítés[[#This Row],[Eladott mennyiség (kiskereskedelem)]]*táblázatÉrtékesítés[[#This Row],[Egységenkénti kiskereskedelmi ár]]+táblázatÉrtékesítés[[#This Row],[Eladott mennyiség (nagykereskedelem)]]*táblázatÉrtékesítés[[#This Row],[Egységenkénti nagykereskedelmi ár*]] -> 204,424 Ft
B17: 4 | C17: =IFERROR(IF(táblázatÉrtékesítés[[#This Row],[Termékazonosító]]<>"",VLOOKUP(táblázatÉrtékesítés[Termékazonosító],táblázatTermékek[[Termékazonosító]:[Név]],2,FALSE),""),"Ismeretlen termékazonosító") -> Vizes palackok | D17: 2012-02-29 | E17: 43 | F17: 36 Ft | G17: 952 | H17: 1,390 | I17: =táblázatÉrtékesítés[[#This Row],[Eladott mennyiség (kiskereskedelem)]]+táblázatÉrtékesítés[[#This Row],[Eladott mennyiség (nagykereskedelem)]] -> 2,342 | J17: =táblázatÉrtékesítés[[#This Row],[Eladott mennyiség (kiskereskedelem)]]*táblázatÉrtékesítés[[#This Row],[Egységenkénti kiskereskedelmi ár]]+táblázatÉrtékesítés[[#This Row],[Eladott mennyiség (nagykereskedelem)]]*táblázatÉrtékesítés[[#This Row],[Egységenkénti nagykereskedelmi ár*]] -> 90,976 Ft
B18: 5 | C18: =IFERROR(IF(táblázatÉrtékesítés[[#This Row],[Termékazonosító]]<>"",VLOOKUP(táblázatÉrtékesítés[Termékazonosító],táblázatTermékek[[Termékazonosító]:[Név]],2,FALSE),""),"Ismeretlen termékazonosító") -> Rövidnadrág | D18: 2012-02-29 | E18: 98 | F18: 73 Ft | G18: 530 | H18: 1,452 | I18: =táblázatÉrtékesítés[[#This Row],[Eladott mennyiség (kiskereskedelem)]]+táblázatÉrtékesítés[[#This Row],[Eladott mennyiség (nagykereskedelem)]] -> 1,982 | J18: =táblázatÉrtékesítés[[#This Row],[Eladott mennyiség (kiskereskedelem)]]*táblázatÉrtékesítés[[#This Row],[Egységenkénti kiskereskedelmi ár]]+táblázatÉrtékesítés[[#This Row],[Eladott mennyiség (nagykereskedelem)]]*táblázatÉrtékesítés[[#This Row],[Egységenkénti nagykereskedelmi ár*]] -> 157,936 Ft
B19: 1 | C19: =IFERROR(IF(táblázatÉrtékesítés[[#This Row],[Termékazonosító]]<>"",VLOOKUP(táblázatÉrtékesítés[Termékazonosító],táblázatTermékek[[Termékazonosító]:[Név]],2,FALSE),""),"Ismeretlen termékazonosító") -> Ing | D19: 2012-03-31 | E19: 38 | F19: 28 Ft | G19: 973 | H19: 1,415 | I19: =táblázatÉrtékesítés[[#This Row],[Eladott mennyiség (kiskereskedelem)]]+táblázatÉrtékesítés[[#This Row],[Eladott mennyiség (nagykereskedelem)]] -> 2,388 | J19: =táblázatÉrtékesítés[[#This Row],[Eladott mennyiség (kiskereskedelem)]]*táblázatÉrtékesítés[[#This Row],[Egységenkénti kiskereskedelmi ár]]+táblázatÉrtékesítés[[#This Row],[Eladott mennyiség (nagykereskedelem)]]*táblázatÉrtékesítés[[#This Row],[Egységenkénti nagykereskedelmi ár*]] -> 76,594 Ft
B20: 2 | C20: =IFERROR(IF(táblázatÉrtékesítés[[#This Row],[Termékazonosító]]<>"",VLOOKUP(táblázatÉrtékesítés[Termékazonosító],táblázatTermékek[[Termékazonosító]:[Név]],2,FALSE),""),"Ismeretlen termékazonosító") -> Szandál | D20: 2012-03-31 | E20: 50 | F20: 36 Ft | G20: 672 | H20: 1,105 | I20: =táblázatÉrtékesítés[[#This Row],[Eladott mennyiség (kiskereskedelem)]]+táblázatÉrtékesítés[[#This Row],[Eladott mennyiség (nagykereskedelem)]] -> 1,777 | J20: =táblázatÉrtékesítés[[#This Row],[Eladott mennyiség (kiskereskedelem)]]*táblázatÉrtékesítés[[#This Row],[Egységenkénti kiskereskedelmi ár]]+táblázatÉrtékesítés[[#This Row],[Eladott mennyiség (nagykereskedelem)]]*táblázatÉrtékesítés[[#This Row],[Egységenkénti nagykereskedelmi ár*]] -> 73,380 Ft
B21: 3 | C21: =IFERROR(IF(táblázatÉrtékesítés[[#This Row],[Termékazonosító]]<>"",VLOOKUP(táblázatÉrtékesítés[Termékazonosító],táblázatTermékek[[Termékazonosító]:[Név]],2,FALSE),""),"Ismeretlen termékazonosító") -> Esernyő | D21: 2012-03-31 | E21: 24 | F21: 23 Ft | G21: 769 | H21: 1,629 | I21: =táblázatÉrtékesítés[[#This Row],[Eladott mennyiség (kiskereskedelem)]]+táblázatÉrtékesítés[[#This Row],[Eladott mennyiség (nagykereskedelem)]] -> 2,398 | J21: =táblázatÉrtékesítés[[#This Row],[Eladott mennyiség (kiskereskedelem)]]*táblázatÉrtékesítés[[#This Row],[Egységenkénti kiskereskedelmi ár]]+táblázatÉrtékesítés[[#This Row],[Eladott mennyiség (nagykereskedelem)]]*táblázatÉrtékesítés[[#This Row],[Egységenkénti nagykereskedelmi ár*]] -> 55,923 Ft
B22: 4 | C22: =IFERROR(IF(táblázatÉrtékesítés[[#This Row],[Termékazonosító]]<>"",VLOOKUP(táblázatÉrtékesítés[Termékazonosító],táblázatTermékek[[Termékazonosító]:[Név]],2,FALSE),""),"Ismeretlen termékazonosító") -> Vizes palackok | D22: 2012-03-31 | E22: 72 | F22: 57 Ft | G22: 985 | H22: 1,848 | I22: =táblázatÉrtékesítés[[#This Row],[Eladott mennyiség (kiskereskedelem)]]+táblázatÉrtékesítés[[#This Row],[Eladott mennyiség (nagykereskedelem)]] -> 2,833 | J22: =táblázatÉrtékesítés[[#This Row],[Eladott mennyiség (kiskereskedelem)]]*táblázatÉrtékesítés[[#This Row],[Egységenkénti kiskereskedelmi ár]]+táblázatÉrtékesítés[[#This Row],[Eladott mennyiség (nagykereskedelem)]]*táblázatÉrtékesítés[[#This Row],[Egységenkénti nagykereskedelmi ár*]] -> 176,256 Ft
B23: 5 | C23: =IFERROR(IF(táblázatÉrtékesítés[[#This Row],[Termékazonosító]]<>"",VLOOKUP(táblázatÉrtékesítés[Termékazonosító],táblázatTermékek[[Termékazonosító]:[Név]],2,FALSE),""),"Ismeretlen termékazonosító") -> Rövidnadrág | D23: 2012-03-31 | E23: 85 | F23: 43 Ft | G23: 721 | H23: 1,426 | I23: =táblázatÉrtékesítés[[#This Row],[Eladott mennyiség (kiskereskedelem)]]+táblázatÉrtékesítés[[#This Row],[Eladott mennyiség (nagykereskedelem)]] -> 2,147 | J23: =táblázatÉrtékesítés[[#This Row],[Eladott mennyiség (kiskereskedelem)]]*táblázatÉrtékesítés[[#This Row],[Egységenkénti kiskereskedelmi ár]]+táblázatÉrtékesítés[[#This Row],[Eladott mennyiség (nagykereskedelem)]]*táblázatÉrtékesítés[[#This Row],[Egységenkénti nagykereskedelmi ár*]] -> 122,603 Ft
B24: 1 | C24: =IFERROR(IF(táblázatÉrtékesítés[[#This Row],[Termékazonosító]]<>"",VLOOKUP(táblázatÉrtékesítés[Termékazonosító],táblázatTermékek[[Termékazonosító]:[Név]],2,FALSE),""),"Ismeretlen termékazonosító") -> Ing | D24: 2012-04-30 | E24: 91 | F24: 65 Ft | G24: 603 | H24: 1,226 | I24: =táblázatÉrtékesítés[[#This Row],[Eladott mennyiség (kiskereskedelem)]]+táblázatÉrtékesítés[[#This Row],[Eladott mennyiség (nagykereskedelem)]] -> 1,829 | J24: =táblázatÉrtékesítés[[#This Row],[Eladott mennyiség (kiskereskedelem)]]*táblázatÉrtékesítés[[#This Row],[Egységenkénti kiskereskedelmi ár]]+táblázatÉrtékesítés[[#This Row],[Eladott mennyiség (nagykereskedelem)]]*táblázatÉrtékesítés[[#This Row],[Egységenkénti nagykereskedelmi ár*]] -> 134,563 Ft
B25: 2 | C25: =IFERROR(IF(táblázatÉrtékesítés[[#This Row],[Termékazonosító]]<>"",VLOOKUP(táblázatÉrtékesítés[Termékazonosító],táblázatTermékek[[Termékazonosító]:[Név]],2,FALSE),""),"Ismeretlen termékazonosító") -> Szandál | D25: 2012-04-30 | E25: 91 | F25: 55 Ft | G25: 892 | H25: 1,823 | I25: =táblázatÉrtékesítés[[#This Row],[Eladott mennyiség (kiskereskedelem)]]+táblázatÉrtékesítés[[#This Row],[Eladott mennyiség (nagykereskedelem)]] -> 2,715 | J25: =táblázatÉrtékesítés[[#This Row],[Eladott mennyiség (kiskereskedelem)]]*táblázatÉrtékesítés[[#This Row],[Egységenkénti kiskereskedelmi ár]]+táblázatÉrtékesítés[[#This Row],[Eladott mennyiség (nagykereskedelem)]]*táblázatÉrtékesítés[[#This Row],[Egységenkénti nagykereskedelmi ár*]] -> 181,437 Ft
B26: 3 | C26: =IFERROR(IF(táblázatÉrtékesítés[[#This Row],[Termékazonosító]]<>"",VLOOKUP(táblázatÉrtékesítés[Termékazonosító],táblázatTermékek[[Termékazonosító]:[Név]],2,FALSE),""),"Ismeretlen termékazonosító") -> Esernyő | D26: 2012-04-30 | E26: 42 | F26: 42 Ft | G26: 611 | H26: 1,181 | I26: =táblázatÉrtékesítés[[#This Row],[Eladott mennyiség (kiskereskedelem)]]+táblázatÉrtékesítés[[#This Row],[Eladott mennyiség (nagykereskedelem)]] -> 1,792 | J26: =táblázatÉrtékesítés[[#This Row],[Eladott mennyiség (kiskereskedelem)]]*táblázatÉrtékesítés[[#This Row],[Egységenkénti kiskereskedelmi ár]]+táblázatÉrtékesítés[[#This Row],[Eladott mennyiség (nagykereskedelem)]]*táblázatÉrtékesítés[[#This Row],[Egységenkénti nagykereskedelmi ár*]] -> 75,264 Ft
B27: 4 | C27: =IFERROR(IF(táblázatÉrtékesítés[[#This Row],[Termékazonosító]]<>"",VLOOKUP(táblázatÉrtékesítés[Termékazonosító],táblázatTermékek[[Termékazonosító]:[Név]],2,FALSE),""),"Ismeretlen termékazonosító") -> Vizes palackok | D27: 2012-04-30 | E27: 85 | F27: 43 Ft | G27: 530 | H27: 1,039 | I27: =táblázatÉrtékesítés[[#This Row],[Eladott mennyiség (kiskereskedelem)]]+táblázatÉrtékesítés[[#This Row],[Eladott mennyiség (nagykereskedelem)]] -> 1,569 | J27: =táblázatÉrtékesítés[[#This Row],[Eladott mennyiség (kiskereskedelem)]]*táblázatÉrtékesítés[[#This Row],[Egységenkénti kiskereskedelmi ár]]+táblázatÉrtékesítés[[#This Row],[Eladott mennyiség (nagykereskedelem)]]*táblázatÉrtékesítés[[#This Row],[Egységenkénti nagykereskedelmi ár*]] -> 89,727 Ft
B28: 5 | C28: =IFERROR(IF(táblázatÉrtékesítés[[#This Row],[Termékazonosító]]<>"",VLOOKUP(táblázatÉrtékesítés[Termékazonosító],táblázatTermékek[[Termékazonosító]:[Név]],2,FALSE),""),"Ismeretlen termékazonosító") -> Rövidnadrág | D28: 2012-04-30 | E28: 82 | F28: 71 Ft | G28: 716 | H28: 1,249 | I28: =táblázatÉrtékesítés[[#This Row],[Eladott mennyiség (kiskereskedelem)]]+táblázatÉrtékesítés[[#This Row],[Eladott mennyiség (nagykereskedelem)]] -> 1,965 | J28: =táblázatÉrtékesítés[[#This Row],[Eladott mennyiség (kiskereskedelem)]]*táblázatÉrtékesítés[[#This Row],[Egységenkénti kiskereskedelmi ár]]+táblázatÉrtékesítés[[#This Row],[Eladott mennyiség (nagykereskedelem)]]*táblázatÉrtékesítés[[#This Row],[Egységenkénti nagykereskedelmi ár*]] -> 147,391 Ft
B29: 1 | C29: =IFERROR(IF(táblázatÉrtékesítés[[#This Row],[Termékazonosító]]<>"",VLOOKUP(táblázatÉrtékesítés[Termékazonosító],táblázatTermékek[[Termékazonosító]:[Név]],2,FALSE),""),"Ismeretlen termékazonosító") -> Ing | D29: 2012-05-14 | E29: 34 | F29: 31 Ft | G29: 850 | H29: 1,548 | I29: =táblázatÉrtékesítés[[#This Row],[Eladott mennyiség (kiskereskedelem)]]+táblázatÉrtékesítés[[#This Row],[Eladott mennyiség (nagykereskedelem)]] -> 2,398 | J29: =táblázatÉrtékesítés[[#This Row],[Eladott mennyiség (kiskereskedelem)]]*táblázatÉrtékesítés[[#This Row],[Egységenkénti kiskereskedelmi ár]]+táblázatÉrtékesítés[[#This Row],[Eladott mennyiség (nagykereskedelem)]]*táblázatÉrtékesítés[[#This Row],[Egységenkénti nagykereskedelmi ár*]] -> 76,888 Ft
B30: 2 | C30: =IFERROR(IF(táblázatÉrtékesítés[[#This Row],[Termékazonosító]]<>"",VLOOKUP(táblázatÉrtékesítés[Termékazonosító],táblázatTermékek[[Termékazonosító]:[Név]],2,FALSE),""),"Ismeretlen termékazonosító") -> Szandál | D30: 2012-05-14 | E30: 64 | F30: 40 Ft | G30: 876 | H30: 1,663 | I30: =táblázatÉrtékesítés[[#This Row],[Eladott mennyiség (kiskereskedelem)]]+táblázatÉrtékesítés[[#This Row],[Eladott mennyiség (nagykereskedelem)]] -> 2,539 | J30: =táblázatÉrtékesítés[[#This Row],[Eladott mennyiség (kiskereskedelem)]]*táblázatÉrtékesítés[[#This Row],[Egységenkénti kiskereskedelmi ár]]+táblázatÉrtékesítés[[#This Row],[Eladott mennyiség (nagykereskedelem)]]*táblázatÉrtékesítés[[#This Row],[Egységenkénti nagykereskedelmi ár*]] -> 122,584 Ft
B31: 3 | C31: =IFERROR(IF(táblázatÉrtékesítés[[#This Row],[Termékazonosító]]<>"",VLOOKUP(táblázatÉrtékesítés[Termékazonosító],táblázatTermékek[[Termékazonosító]:[Név]],2,FALSE),""),"Ismeretlen termékazonosító") -> Esernyő | D31: 2012-05-14 | E31: 33 | F31: 30 Ft | G31: 881 | H31: 1,149 | I31: =táblázatÉrtékesítés[[#This Row],[Eladott mennyiség (kiskereskedelem)]]+táblázatÉrtékesítés[[#This Row],[Eladott mennyiség (nagykereskedelem)]] -> 2,030 | J31: =táblázatÉrtékesítés[[#This Row],[Eladott mennyiség (kiskereskedelem)]]*táblázatÉrtékesítés[[#This Row],[Egységenkénti kiskereskedelmi ár]]+táblázatÉrtékesítés[[#This Row],[Eladott mennyiség (nagykereskedelem)]]*táblázatÉrtékesítés[[#This Row],[Egységenkénti nagykereskedelmi ár*]] -> 63,543 Ft
B32: 4 | C32: =IFERROR(IF(táblázatÉrtékesítés[[#This Row],[Termékazonosító]]<>"",VLOOKUP(táblázatÉrtékesítés[Termékazonosító],táblázatTermékek[[Termékazonosító]:[Név]],2,FALSE),""),"Ismeretlen termékazonosító") -> Vizes palackok | D32: 2012-05-14 | E32: 29 | F32: 27 Ft | G32: 802 | H32: 1,548 | I32: =táblázatÉrtékesítés[[#This Row],[Eladott mennyiség (kiskereskedelem)]]+táblázatÉrtékesítés[[#This Row],[Eladott mennyiség (nagykereskedelem)]] -> 2,350 | J32: =táblázatÉrtékesítés[[#This Row],[Eladott mennyiség (kiskereskedelem)]]*táblázatÉrtékesítés[[#This Row],[Egységenkénti kiskereskedelmi ár]]+táblázatÉrtékesítés[[#This Row],[Eladott mennyiség (nagykereskedelem)]]*táblázatÉrtékesítés[[#This Row],[Egységenkénti nagykereskedelmi ár*]] -> 65,054 Ft
B33: 5 | C33: =IFERROR(IF(táblázatÉrtékesítés[[#This Row],[Termékazonosító]]<>"",VLOOKUP(táblázatÉrtékesítés[Termékazonosító],táblázatTermékek[[Termékazonosító]:[Név]],2,FALSE),""),"Ismeretlen termékazonosító") -> Rövidnadrág | D33: 2013-12-11 | E33: 24 | F33: 15 Ft | G33: 824 | H33: 1,994 | I33: =táblázatÉrtékesítés[[#This Row],[Eladott mennyiség (kiskereskedelem)]]+táblázatÉrtékesítés[[#This Row],[Eladott mennyiség (nagykereskedelem)]] -> 2,818 | J33: =táblázatÉrtékesítés[[#This Row],[Eladott mennyiség (kiskereskedelem)]]*táblázatÉrtékesítés[[#This Row],[Egységenkénti kiskereskedelmi ár]]+táblázatÉrtékesítés[[#This Row],[Eladott mennyiség (nagykereskedelem)]]*táblázatÉrtékesítés[[#This Row],[Egységenkénti nagykereskedelmi ár*]] -> 49,686 Ft

Sheet Árlista
B1: Termékárlista
B3: Adventure Works
B4: Tölgy utca 23.
B5: 2900 Budapest
B6: Telefonszám: (10) 123 4517
B7: Faxszám: (10) 123 4519
B8: www.adventure-works.com | F8: Utolsó frissítés: 2013. 08. 15.
B10: Termékazonosító | C10: Név | D10: Leírás | E10: Egységenkénti kiskereskedelmi ár | F10: Egységenkénti nagykereskedelmi ár*
B11: 1 | C11: Ing | D11: Érezze magát kellemes hűvösben egész nyáron át az előkezelt 100%-os pamutingünkben. | E11: 22 Ft | F11: 15.00 Ft
B12: 2 | C12: Szandál | D12: Strapabíró, gumitalpú szandálunkat viselve a legforróbb homokon is kényelmesen sétálgathat. | E12: 10 Ft | F12: 6.00 Ft
B13: 3 | C13: Esernyő | D13: Védelmet találhat a nap elől a hatalmas napernyőnk alatt, amely a káros UV sugarak 96%-át elnyeli. | E13: 30 Ft | F13: 20.00 Ft
B14: 4 | C14: Vizes palackok | D14: Tökéletes hőmérsékletű vízzel olthatja szomját a vizes hűtőpalackunkból. | E14: 7 Ft | F14: 5.00 Ft
B15: 5 | C15: Rövidnadrág | D15: Rendkívül gyorsan száradó nylon rövidnadrágunkban a vízből egyenesen beszállhat az autójába. | E15: 15 Ft | F15: 8.00 Ft
F17: A listán nem szereplő termékekért hívjon fel bennünket.
F18: *A nagykereskedelmi árak 12 vagy több egységnyi mennyiségre érvényesek.

Sheet Irányár-kimutatás (hidden)
B1: Irányár-kimutatás
B2: Hagyja rejtve ezt a munkalapot. Az alábbi kimutatáson végzett bármely módosítás következtében helytelen adatok keletkezhetnek a Termékértékesítési jelentésben.
B3: Kijelölt termék: | C3: =IF(LEN(B5),B5,"None") -> Szandál
B4: Terméknév | C4: Egységenkénti kiskereskedelmi ár | D4: Összeg / Összes értékesítés (#)
B5: Szandál | C5: 38 Ft | D5: 2464
C6: 50 Ft | D6: 1777
C7: 64 Ft | D7: 2539
C8: 70 Ft | D8: 1787
C9: 83 Ft | D9: 1758
C10: 91 Ft | D10: 2715

Sheet Értékesítésitendencia-kimutatás (hidden)
B1: Értékesítési tendencia kimutatása
B2: Hagyja rejtve ezt a munkalapot. Az alábbi kimutatáson végzett bármely módosítás következtében helytelen adatok keletkezhetnek a Termékértékesítési jelentésben.
B3: Összeg / Összes értékesítés (#) | C3: Terméknév
B4: Ár dátuma | C4: Szandál
B5: jan | C5: 1787
B6: febr | C6: 4222
B7: márc | C7: 1777
B8: ápr | C8: 2715
B9: máj | C9: 2539
